lending/lending_fUSD_20240705
["ID","MTS","AMOUNT","RATE_DAILY","PERIOD"]
[331282584,1720177842847,-250.0,0.00016391,2]
[331282585,1720177842857,-300.0,0.00016438,2]
[331282586,1720177842867,-3074.42673232,0.00016699,2]
[331282587,1720177842878,-180.28,0.00016712,2]
[331282588,1720177842888,-464.182425,0.00016712,2]
[331282589,1720177842898,-85.13236388,0.00016758,2]
[331282590,1720177842911,-15065.00763612,0.00016758,2]
[331282591,1720177842920,-3021.92268944,0.00016808,2]
[331282592,1720177842930,-1000.0,0.00016873,2]
[331282593,1720177842940,-165.635146,0.00016898,2]
[331282594,1720177842950,-155.93987876,0.00017159,2]
[331282595,1720177842960,-290.97986156,0.00017199,2]
[331282596,1720177842971,-266.23744785,0.00017257,2]
[331282597,1720177842981,-1135.49782486,0.00017259,2]
[331282598,1720177842990,-1864.55098,0.0001727,2]
[331282599,1720177843000,-22.65413263,0.00017444,2]
[331282600,1720177843122,-155.50465982,0.00017444,2]
[331282601,1720177843132,-155.0,0.00017444,2]
[331282602,1720177843143,-158.72665019,0.00017533,2]
[331282603,1720177843168,-207.24352955,0.00017533,2]
[331282604,1720177843190,-266.33974194,0.00017533,2]
[331282605,1720177843222,-1283.9577871,0.00017533,2]
[331282609,1720177843293,-2.65444295,0.00017533,2]
[331282611,1720177843311,-356.30245499,0.00017533,2]
[331282614,1720177843321,-356.30245499,0.00017533,2]
[331282616,1720177843331,-464.182425,0.00017534,2]
[331282618,1720177843341,-290.45,0.00017563,2]
[331282620,1720177843351,-1258.88908358,0.00017581,2]
[331282622,1720177843360,-23.56913849,0.00017599,2]
[331282624,1720177843372,-496.46245175,0.00017599,2]
[331282626,1720177843383,-671.40805045,0.00017599,2]
[331282629,1720177843396,-733.295,0.00017599,2]
[331282631,1720177843408,-436.0449423,0.00017599,2]
[331282634,1720177843423,-132.60340013,0.00017599,2]
[331282635,1720177843434,-597.26,0.00017677,2]
[331282638,1720177843444,-405.12061178,0.00017761,2]
[331282640,1720177843454,-948.0,0.000178,3]
[331282641,1720177843463,-1152.0,0.00017808,2]
[331282643,1720177843476,-1265.01058332,0.00017829,2]
[331282645,1720177843486,-300.77106222,0.00017889,2]
[331282647,1720177843496,-175.41039267,0.00017889,2]
[331282650,1720177843506,-151.0,0.00017999,2]
[331282651,1720177843516,-151.0,0.00017999,2]
[331282653,1720177843526,-370.76260341,0.00018,2]
[331282656,1720177843535,-155.0,0.00018,2]
[331282658,1720177843545,-168.8,0.000181,2]
[331282660,1720177843555,-267.33840268,0.00018183,2]
[331282662,1720177843565,-464.182425,0.00018356,2]
[331282681,1720177843751,-190.86,0.00018421,2]
[331282684,1720177843764,-293.76288995,0.00018432,2]
[331282686,1720177843773,-10000.0,0.00018478,2]
[331282688,1720177843783,-1864.55099,0.0001853,2]
[331282689,1720177843793,-2153.58488801,0.00018532,2]
[331282691,1720177843806,-1000.0,0.00018561,2]
[331282693,1720177843815,-165.635146,0.00018895,2]
[331282695,1720177843825,-151.36,0.000189,2]
[331282697,1720177843835,-151.36,0.000189,2]
[331282699,1720177843844,-151.36,0.000189,2]
[331282701,1720177843853,-43.50118669,0.000189,2]
[331282703,1720177843865,-107.85881331,0.000189,2]
[331282705,1720177843874,-151.36,0.000189,2]
[331282708,1720177843884,-151.36,0.000189,2]
[331282710,1720177843894,-151.36,0.000189,2]
[331282712,1720177843903,-1258.88908358,0.00018908,2]
[331282714,1720177843912,-297.52875781,0.00018919,2]
[331282716,1720177843921,-171.55,0.00018993,2]
[331282717,1720177843930,-5000.0,0.00019,2]
[331282718,1720177843941,-155.0,0.00019,2]
[331282719,1720177843950,-420.09656236,0.00019,2]
[331282720,1720177843959,-420.09656236,0.00019,2]
[331282721,1720177843969,-420.09656236,0.00019,2]
[331282722,1720177843979,-155.1650936,0.00019,2]
[331282723,1720177843988,-300.0,0.00019,2]
[331282724,1720177843997,-35591.7209191,0.00019069,2]
[331282725,1720177844007,-22230.29764552,0.00019069,2]
[331282726,1720177844019,-1043.21965598,0.00019069,2]
[331282727,1720177844033,-274.955661,0.00019069,2]
[331282851,1720177848929,-327.81729684,0.000136,2]
[331282853,1720177848939,-1903.65279599,0.00017259,2]
[331282855,1720177848951,-2775.68967099,0.00018478,2]
[331282856,1720177848961,-12043.2479566,0.00019069,2]
[331282857,1720177848973,-290.45,0.0001916,2]
[331282858,1720177848982,-556.95,0.00019178,2]
[331282859,1720177848991,-250.0,0.00019178,2]
[331282860,1720177849000,-5408.78,0.00019178,2]
[331282861,1720177849010,-464.182425,0.00019178,2]
[331282862,1720177849021,-2153.58488801,0.00019258,2]
[331282863,1720177849032,-151.36,0.00019342,2]
[331282864,1720177849041,-12263.96799634,0.0001935,2]
[331282865,1720177849050,-9243.00446491,0.0001935,2]
[331282866,1720177849059,-369.04652903,0.00019354,2]
[331282867,1720177849071,-296.98016859,0.00019354,2]
[331282868,1720177849084,-2200.09526978,0.00019399,2]
[331282869,1720177849093,-212.65107117,0.00019399,2]
[331282870,1720177849105,-5601.67350826,0.00019451,2]
[331282871,1720177849116,-2500.0,0.000195,2]
[331282872,1720177849125,-1613.0,0.00019543,2]
[331282873,1720177849135,-415.70505063,0.00019548,2]
[331282874,1720177849145,-3518.70161778,0.00019592,2]
[331282875,1720177849157,-1200.0,0.00019592,2]
[331282876,1720177849168,-916.43123419,0.00019592,2]
[331282877,1720177849180,-175.86714803,0.00019592,2]
[331282878,1720177849191,-291.0,0.00019592,2]
[331282879,1720177849201,-525.23285197,0.00019592,2]
[331282880,1720177849212,-191.63614803,0.00019592,2]
[331282881,1720177849224,-361.29417957,0.00019592,2]
[331282882,1720177849236,-771.92911322,0.00019592,2]
[331282883,1720177849248,-4043.77670721,0.00019592,2]
[331282884,1720177849257,-809.6794899,0.00019592,2]
[331282885,1720177849268,-854.3205101,0.00019592,2]
[331282886,1720177849277,-3099.49876445,0.00019725,2]
[331282887,1720177849289,-490.81734235,0.00019725,2]
[331282888,1720177849300,-498.7999998,0.00019725,2]
[331282889,1720177849312,-4650.0,0.00019725,2]
[331282890,1720177849323,-560.7578107,0.00019725,2]
[331282891,1720177849334,-5993.96581954,0.00019725,2]
[331282892,1720177849346,-1126.43968259,0.00019725,2]
[331282893,1720177849357,-10107.5929734,0.00019725,2]
[331282894,1720177849368,-410.2183359,0.00019725,2]
[331282895,1720177849379,-4225.27958772,0.00019725,2]
[331282896,1720177849389,-1864.55098,0.0001978,2]
[331282897,1720177849398,-151.36,0.0001979,2]
[331282898,1720177849409,-151.36,0.0001979,2]
[331282899,1720177849419,-151.0,0.000198,2]
[331282900,1720177849428,-151.0,0.000198,2]
[331282901,1720177849437,-151.0,0.000198,2]
[331282902,1720177849447,-151.0,0.000198,2]
[331282903,1720177849456,-151.0,0.000198,2]
[331282904,1720177849468,-151.0,0.000198,2]
[331282905,1720177849479,-151.51029,0.000198,2]
[331282906,1720177849488,-340.728729,0.000198,2]
[331282907,1720177849498,-340.728729,0.000198,2]
[331282908,1720177849507,-151.0,0.000198,2]
[331282909,1720177849516,-151.0,0.000198,2]
[331282910,1720177849525,-151.0,0.000198,2]
[331282911,1720177849537,-151.0,0.000198,2]
[331282912,1720177849546,-151.0,0.000198,2]
[331282913,1720177849556,-183.894721,0.000198,2]
[331282914,1720177849565,-183.894721,0.000198,2]
[331282915,1720177849574,-151.0,0.000198,2]
[331282916,1720177849584,-151.0,0.000198,2]
[331282917,1720177849593,-151.0,0.000198,2]
[331282918,1720177849604,-151.0,0.000198,2]
[331282919,1720177849613,-151.0,0.000198,2]
[331282920,1720177849623,-200.65823,0.000198,2]
[331282921,1720177849632,-151.0,0.000198,2]
[331282922,1720177849641,-36.65440484,0.000198,2]
[331282923,1720177849653,-542.54437516,0.000198,2]
[331282924,1720177849663,-166.789443,0.000198,2]
[331282925,1720177849676,-151.0,0.000198,2]
[331282926,1720177849685,-579.19878,0.000198,2]
[331282927,1720177849695,-166.789443,0.000198,2]
[331282928,1720177849705,-151.0,0.000198,2]
[331282929,1720177849714,-151.0,0.000198,2]
[331282930,1720177849725,-151.0,0.000198,2]
[331282931,1720177849734,-162.45757,0.000198,2]
[331282932,1720177849744,-151.0,0.000198,2]
[331282933,1720177849753,-151.0,0.000198,2]
[331282934,1720177849763,-151.0,0.000198,2]
[331282935,1720177849772,-151.0,0.000198,2]
[331282936,1720177849783,-151.0,0.000198,2]
[331282937,1720177849796,-151.0,0.000198,2]
[331282938,1720177849806,-217.111394,0.000198,2]
[331282939,1720177849816,-151.0,0.000198,2]
[331282940,1720177849826,-212.760309,0.000198,2]
[331282941,1720177849835,-151.0,0.000198,2]
[331282942,1720177849845,-212.760309,0.000198,2]
[331282943,1720177849855,-151.0,0.000198,2]
[331282944,1720177849866,-158.55,0.000198,2]
[331282945,1720177849875,-158.55,0.000198,2]
[331282946,1720177849884,-151.0,0.000198,2]
[331282947,1720177849893,-239.092565,0.000198,2]
[331282948,1720177849903,-239.092565,0.000198,2]
[331282949,1720177849912,-151.0,0.000198,2]
[331282950,1720177849922,-151.0,0.000198,2]
[331282951,1720177849931,-151.0,0.000198,2]
[331282952,1720177850079,-290.286683,0.000198,2]
[331282953,1720177850089,-151.0,0.000198,2]
[331282954,1720177850099,-275.230491,0.000198,2]
[331282955,1720177850110,-151.0,0.000198,2]
[331282956,1720177850120,-151.0,0.000198,2]
[331282957,1720177850130,-151.0,0.000198,2]
[331282958,1720177850140,-151.0,0.000198,2]
[331282959,1720177850151,-151.0,0.000198,2]
[331282960,1720177850162,-151.0,0.000198,2]
[331282961,1720177850171,-151.0,0.000198,2]
[331282962,1720177850180,-271.885378,0.000198,2]
[331282963,1720177850190,-271.885378,0.000198,2]
[331282964,1720177850199,-151.0,0.000198,2]
[331282965,1720177850208,-151.0,0.000198,2]
[331282966,1720177850218,-151.0,0.000198,2]
[331282967,1720177850229,-151.0,0.000198,2]
[331282968,1720177850238,-151.0,0.000198,2]
[331282969,1720177850247,-151.0,0.000198,2]
[331282970,1720177850256,-496.27142,0.000198,2]
[331282971,1720177850265,-151.0,0.000198,2]
[331282972,1720177850274,-496.27142,0.000198,2]
[331282973,1720177850283,-185.357421,0.000198,2]
[331282974,1720177850293,-151.0,0.000198,2]
[331282975,1720177850302,-281.020493,0.000198,2]
[331282976,1720177850311,-558.400268,0.000198,2]
[331282977,1720177850320,-558.400268,0.000198,2]
[331282978,1720177850330,-151.0,0.000198,2]
[331282979,1720177850339,-1950.73507994,0.000198,3]
[331282980,1720177870646,200.0,0.00032357,30]
[331282981,1720177870947,200.0,0.00032357,30]
[331282982,1720177871921,203.388258,0.00032357,30]
[331282983,1720177986833,31163.37031645,0.00011199,2]
[331282984,1720178030642,150.0,0.00011199,2]
[331282985,1720178030955,150.0,0.00011199,2]
[331282986,1720178031251,150.0,0.00011199,2]
[331282987,1720178031603,150.0,0.00011199,2]
[331282988,1720178031812,150.0,0.00011199,2]
[331282989,1720178032146,150.0,0.00011199,2]
[331282990,1720178032376,5713.85059521,0.00011199,2]
[331282991,1720178061974,3074.42673232,0.00011199,2]
[331282992,1720178068267,4498.7668119,0.00011199,2]
[331282993,1720178069939,150.0,0.00011199,2]
[331282994,1720178069963,111.8190365,0.00011199,2]
[331282995,1720178127357,150.0,0.00011199,2]
[331282996,1720178127383,150.0,0.00011199,2]
[331282997,1720178127407,150.0,0.00011199,2]
[331282998,1720178127431,150.0,0.00011199,2]
[331282999,1720178127457,150.0,0.00011199,2]
[331283000,1720178127484,1266.5045302,0.00011199,2]
[331283001,1720178133351,150.0,0.00011199,2]
[331283002,1720178133373,150.0,0.00011199,2]
[331283003,1720178133396,150.0,0.00011199,2]
[331283004,1720178133419,1453.65279599,0.00011199,2]
[331283005,1720178133463,1238.918095,0.00011199,2]
[331283006,1720178143313,257.0,0.00032357,30]
[331283007,1720178158172,150.1,0.00032357,30]
[331283008,1720178159698,154.026122,0.00032357,30]
[331283009,1720178170197,150.0,0.00032357,30]
[331283010,1720178184413,150.0,0.00011199,2]
[331283011,1720178185576,150.0,0.00011199,2]
[331283012,1720178186319,150.0,0.00011199,2]
[331283013,1720178186649,187.54002024,0.00011199,2]
[331283014,1720178186693,20.48204823,0.00011199,2]
[331283015,1720178198689,800.79764859,0.00011199,2]
[331283016,1720178229834,155.0,0.00011199,2]
[331283017,1720178231331,7554.66053537,0.00011199,2]
[331283018,1720178234278,12590.63203284,0.00011199,2]
[331283019,1720178240573,496204.09064374,0.00011199,2]
[331283020,1720178265221,191.0,0.00032348,30]
[331283021,1720178266115,159.30941425,0.00011199,2]
[331283022,1720178270104,553.07615953,0.00011199,2]
[331283023,1720178286435,155.57780324,0.00011199,2]
[331283024,1720178297415,3074.42673232,0.00011199,2]
[331283025,1720178308826,7554.66053537,0.00011199,2]
[331283026,1720178318790,280.0,0.00011199,2]
[331283027,1720178331694,1367.30728763,0.00011199,2]
[331283028,1720178347853,1367.30728763,0.00011199,2]
[331283029,1720178354080,63334.79328028,0.00011199,2]
[331283030,1720178375366,555.24204899,0.00011199,2]
[331283031,1720178402146,7554.66053537,0.00011199,2]
[331283032,1720178407064,10000.0,0.00011199,2]
[331283033,1720178429733,1630.1845532,0.00011199,2]
[331283034,1720178440801,3236.01137135,0.00011199,2]
[331283035,1720178481755,7554.66053537,0.00011199,2]
[331283036,1720178495180,3074.42673232,0.00011199,2]
[331283037,1720178543261,1282.61371139,0.00011199,2]
[331283038,1720178547523,160.0,0.00032348,30]
[331283039,1720178549002,1386.48863471,0.00011199,2]
[331283040,1720178559741,614.96773275,0.00011199,2]
[331283041,1720178560971,1271.41583717,0.00011199,2]
[331283042,1720178569063,788.74652378,0.00011199,2]
[331283043,1720178570365,7554.66053537,0.00011199,2]
[331283044,1720178570554,891.01341507,0.00011199,2]
[331283045,1720178609508,660.70344244,0.00011199,2]
[331283046,1720178663444,369.04652903,0.00011199,2]
[331283047,1720178677598,2337.84860541,0.00011199,2]
[331283048,1720178680194,754.06054418,0.00011199,2]
[331283049,1720178682707,155.0,0.00011199,2]
[331283050,1720178684492,3070.30408467,0.00011199,2]
[331283051,1720178722927,1253.30119177,0.00011199,2]
[331283052,1720178737169,161.28077976,0.00011199,2]
[331283053,1720178740211,719.40038681,0.00011199,2]
[331283054,1720178770171,1630.1845532,0.00011199,2]
[331283055,1720178772766,623.48458061,0.00011199,2]
[331283056,1720178815226,155.0,0.00011199,2]
[331283057,1720178841847,1053.90679174,0.00011199,2]
[331283058,1720178848331,155.0,0.00011199,2]
[331283059,1720178851530,155.0,0.00011199,2]
[331283060,1720178856848,155.0,0.00011199,2]
[331283061,1720178857292,1386.16661453,0.00011199,2]
[331283062,1720178864299,191.0,0.00032347,30]
[331283063,1720178909284,19629.04410476,0.00011199,2]
[331283064,1720178925495,1271.41583717,0.00011199,2]
[331283068,1720179032361,-496.21,0.00012114,2]
[331283070,1720179032371,-56.539,0.00012273,2]
[331283071,1720179032383,-98.461,0.00012273,2]
[331283073,1720179032392,-261.539,0.00012302,2]
[331283075,1720179032403,-990.6636457,0.00012302,2]
[331283076,1720179032412,-371.09941095,0.00012302,2]
[331283078,1720179032425,-193.85231866,0.00012314,2]
[331283080,1720179032434,-160.0513,0.00013028,2]
[331283082,1720179032444,-2727.85206315,0.00013128,2]
[331283084,1720179032457,-423.56713528,0.00013128,2]
[331283086,1720179032470,-2876.85209186,0.00013128,2]
[331283088,1720179032479,-155.4136306,0.00013128,2]
[331283089,1720179032488,-1630.1845532,0.00013128,2]
[331283090,1720179032497,-1630.1845532,0.00013128,2]
[331283091,1720179032508,-4802.90469614,0.00013472,2]
[331283092,1720179032521,-4440.09976877,0.00013472,2]
[331283093,1720179032530,-9243.00446491,0.00013472,2]
[331283094,1720179032539,-623.24386191,0.00013472,2]
[331283096,1720179032549,-876.21,0.00013516,2]
[331283097,1720179032563,-163.73601725,0.00013543,2]
[331283099,1720179032578,-366.36616793,0.00013543,2]
[331283101,1720179032588,-150.0,0.00013573,2]
[331283103,1720179032598,-299.99,0.00013574,2]
[331283104,1720179032608,-157.5073195,0.00013574,2]
[331283105,1720179032618,-482.75596204,0.00013574,2]
[331283106,1720179032627,-1745.34205599,0.00013574,2]
[331283107,1720179032637,-354.0383605,0.00013746,2]
[331283108,1720179032648,-1442.01221234,0.00013746,2]
[331283109,1720179032660,-351.56071379,0.00013746,2]
[331283110,1720179032671,-4281.9081366,0.00013746,2]
[331283116,1720179033294,-870.73526763,0.00013746,2]
[331283118,1720179033306,-1471.49150375,0.00013746,2]
[331283120,1720179033317,-6127.228,0.00013746,2]
[331283122,1720179033330,-5695.5,0.00013746,2]
[331283124,1720179033341,-544.0998858,0.00013746,2]
[331283126,1720179033352,-2761.42591959,0.00013746,2]
[331283127,1720179033362,-200.0,0.00013798,2]
[331283128,1720179033371,-227.17477303,0.00013889,2]
[331283129,1720179033380,-499.99,0.00013899,2]
[331283130,1720179033389,-176.2221,0.00013899,2]
[331283131,1720179033399,-69171.4819,0.00013899,2]
[331283132,1720179033408,-1000.0,0.00013899,2]
[331283133,1720179033417,-472.08340636,0.00013899,2]
[331283134,1720179033431,-324.80988127,0.00013899,2]
[331283135,1720179033440,-160.44,0.00013923,2]
[331283136,1720179033449,-199.78822991,0.00013989,2]
[331283137,1720179033460,-173.03102796,0.00013995,2]
[331283138,1720179033470,-245.39482389,0.00013998,2]
[331283139,1720179033479,-441401.71419781,0.00013999,2]
[331283140,1720179033491,-1177.42940656,0.00013999,2]
[331283143,1720179040360,-731.29876733,0.00013543,2]
[331283144,1720179040379,-3486.07570309,0.00013999,2]
[331283146,1720179040393,-5546.26690838,0.00013999,2]
[331283148,1720179040407,-3414.75,0.00013999,2]
[331283173,1720179040677,-1873.11230159,0.00013999,2]
[331283175,1720179040700,-1070.3628984,0.00013999,2]
[331283178,1720179040720,-553.33,0.00013999,2]
[331283180,1720179040736,-4718.94712807,0.00013999,2]
[331283183,1720179040752,-15961.76674717,0.00013999,2]
[331283185,1720179040768,-7643.80313688,0.00013999,2]
[331283188,1720179040782,-1215.16040593,0.00013999,2]
[331283190,1720179040794,-250.0,0.00014318,2]
[331283192,1720179040807,-496.21,0.00014378,2]
[331283194,1720179040820,-2730.92,0.00014424,2]
[331283196,1720179040832,-437.65,0.00014448,2]
[331283199,1720179040844,-2722.82,0.00014448,2]
[331283201,1720179040859,-1265.01058332,0.00014499,2]
[331283203,1720179040871,-200.0,0.00014546,2]
[331283205,1720179040883,-160.44,0.00014648,2]
[331283207,1720179040895,-472.08340634,0.00015183,2]
[331283210,1720179040907,-185.67297,0.00015342,2]
[331283212,1720179040919,-1709.55277395,0.00015535,2]
[331283214,1720179040933,-1632.3621893,0.00015535,2]
[331283485,1720179047381,-3026.11595785,0.00013128,2]
[331283494,1720179047404,-21148.61220765,0.00013128,2]
[331283500,1720179047418,-1383.975,0.00013128,2]
[331283508,1720179047436,-2205.695,0.00013128,2]
[331283512,1720179047450,-6913.85728917,0.00013128,2]
[331283556,1720179049311,-913.46546443,0.00013128,2]
[331283557,1720179049321,-4626.76923557,0.00015535,2]
[331283558,1720179049367,-520.37070447,0.00015535,2]
[331283559,1720179049380,-296.92053615,0.00015535,2]
[331283560,1720179049391,-13009.45669311,0.00015535,2]
[331283561,1720179049403,-2925.30539973,0.00015535,2]
[331283562,1720179049413,-185.67297,0.00016164,2]
[331283563,1720179049425,-150.0,0.00016166,2]
[331283564,1720179049436,-200.0,0.00016365,2]
[331283565,1720179049445,-472.08340634,0.00016468,2]
[331283566,1720179049455,-1760.19550154,0.000165,2]
[331283567,1720179049464,-173.03102793,0.0001653,2]
[331283568,1720179049475,-496.21,0.00016642,2]
[331283569,1720179049484,-180.28,0.00016712,2]
[331283570,1720179049494,-15436.64259195,0.00016808,2]
[331283571,1720179049505,-15436.64259195,0.00016808,2]
[331283572,1720179049515,-324.80988124,0.00016896,2]
[331283573,1720179049525,-185.67297,0.00016986,2]
[331283574,1720179049534,-154.5,0.00017505,2]
[331283575,1720179049543,-250.0,0.00017505,2]
[331283576,1720179049552,-10994.48154505,0.00017533,2]
[331283577,1720179049561,-10525.28715581,0.00017533,2]
[331283578,1720179049571,-150.0,0.00017536,2]
[331283579,1720179049580,-472.08340634,0.00017752,2]
[331283580,1720179049590,-185.67297,0.00017808,2]
[331283581,1720179049600,-150.12108655,0.000179,2]
[331283582,1720179049610,-192.0797515,0.00018,2]
[331283583,1720179049619,-314.87509155,0.00018,2]
[331283584,1720179049630,-5601.67350826,0.00018081,2]
[331283585,1720179049639,-3996.0,0.00018081,2]
[331283586,1720179049649,-200.0,0.00018183,2]
[331283587,1720179049663,-167.0,0.00018446,2]
[331283588,1720179049674,-2775.68967099,0.00018478,2]
[331283589,1720179049685,-185.67297,0.0001863,2]
[331283590,1720179049696,-2201.79322894,0.00018648,2]
[331283591,1720179049707,-6228.25159604,0.00018717,2]
[331283592,1720179049716,-800.0,0.00018718,2]
[331283593,1720179049728,-168.92,0.00018718,2]
[331283594,1720179049738,-3111.08002322,0.00018739,2]
[331283595,1720179049748,-2738.14487436,0.00018739,2]
[331283596,1720179049758,-3026.88693848,0.00018835,2]
[331283597,1720179049768,-2378.93432536,0.00018835,2]
[331283598,1720179049778,-3394.25146719,0.00018835,2]
[331283599,1720179049788,-164.81,0.00018849,30]
[331283600,1720179049797,-415.70505063,0.00018899,2]
[331283601,1720179049807,-532.62124327,0.00018899,2]
[331283602,1720179049817,-300.0,0.000189,6]
[331283603,1720179049827,-151.37,0.000189,2]
[331283604,1720179049837,-151.37,0.000189,2]
[331283605,1720179049846,-151.37,0.000189,2]
[331283606,1720179049856,-496.21,0.00018905,2]
[331283607,1720179049867,-2375.7192167,0.00018919,2]
[331283608,1720179049877,-212.65107117,0.00018919,2]
[331283609,1720179049887,-155.0,0.00018919,2]
[331283610,1720179049898,-263.76477357,0.00018999,2]
[331283611,1720179049908,-1903.65279599,0.00018999,2]
[331283612,1720179049918,-5000.0,0.00019,2]
[331283613,1720179049928,-222.35044918,0.00019,2]
[331283614,1720179049938,-155.34957523,0.00019,2]
[331283615,1720179049948,-472.08340634,0.00019037,2]
[331283616,1720179049957,-167.0,0.00019055,2]
[331283617,1720179049971,-173.03102793,0.00019065,2]
[331283618,1720179049980,-155.71818757,0.00019077,2]
[331283619,1720179049990,-678.36292703,0.00019177,2]
[331283620,1720179050000,-356.30245499,0.00019177,2]
[331283621,1720179050011,-250.0,0.00019178,2]
[331283622,1720179050021,-5408.78,0.00019178,2]
[331283623,1720179050031,-296.98016859,0.00019389,2]
[331283624,1720179050041,-536.46036163,0.00019451,2]
[331283625,1720179050050,-185.67297,0.00019452,2]
[331283626,1720179050060,-2500.0,0.000195,2]
[331283627,1720179050070,-208.32471,0.000196,2]
[331283628,1720179050080,-167.0,0.00019664,2]
[331283629,1720179050090,-151.37,0.0001969,2]
[331283630,1720179050099,-11843.2993,0.000197,2]
[331283631,1720179050109,-100000.0,0.000197,2]
[331283632,1720179050118,-1000.0,0.000197,2]
[331283633,1720179050127,-200.0,0.0001974,2]
[331283634,1720179050137,-188.88739323,0.00019772,2]
[331283635,1720179050146,-151.37,0.0001979,2]
[331283636,1720179050156,-151.37,0.0001979,2]
[331283637,1720179050165,-151.0,0.000198,2]
[331283638,1720179050175,-151.0,0.000198,2]
[331283639,1720179050185,-151.0,0.000198,2]
[331283640,1720179050194,-151.0,0.000198,2]
[331283641,1720179050204,-151.0,0.000198,2]
[331283642,1720179050213,-700.0,0.000198,7]
[331283643,1720179050225,-313915.979811,0.000198,3]
[331283644,1720179050237,-255.67407275,0.00019863,2]
[331283645,1720179050247,-150.125,0.00019872,2]
[331283646,1720179050257,-150.0,0.00019872,2]
[331283647,1720179050267,-154.668,0.00019872,2]
[331283648,1720179050279,-151.0,0.00019872,2]
[331283649,1720179050289,-151.37,0.0001989,2]
[331283650,1720179050300,-324.80988124,0.00019893,2]
[331283651,1720179050310,-209.87546738,0.00019898,2]
[331283652,1720179050320,-2474.36977274,0.00019898,2]
[331283653,1720179050330,-1064.40851654,0.00019899,5]
[331283654,1720179050340,-151.0,0.000199,2]
[331283655,1720179050350,-151.0,0.000199,2]
[331283656,1720179050360,-151.0,0.000199,2]
[331283657,1720179050370,-151.0,0.000199,2]
[331283658,1720179050379,-151.0,0.000199,2]
[331283659,1720179050389,-205.551003,0.000199,2]
[331283660,1720179050398,-151.0,0.000199,2]
[331283661,1720179050408,-151.0,0.000199,2]
[331283662,1720179050418,-151.0,0.000199,2]
[331283663,1720179050432,-151.0,0.000199,2]
[331283664,1720179050442,-151.0,0.000199,2]
[331283665,1720179050451,-151.0,0.000199,2]
[331283666,1720179050461,-151.0,0.000199,2]
[331283667,1720179050475,-258.886601,0.000199,2]
[331283668,1720179050487,-151.0,0.000199,2]
[331283669,1720179050497,-258.886601,0.000199,2]
[331283670,1720179050510,-2841.798486,0.000199,2]
[331283671,1720179050522,-2841.798486,0.000199,2]
[331283672,1720179050532,-409.371268,0.000199,2]
[331283673,1720179050541,-151.0,0.000199,2]
[331283674,1720179050551,-409.371268,0.000199,2]
[331283675,1720179050561,-151.0,0.000199,2]
[331283676,1720179050570,-151.0,0.000199,2]
[331283677,1720179050580,-151.0,0.000199,2]
[331283678,1720179050592,-151.0,0.000199,2]
[331283679,1720179050604,-151.0,0.000199,2]
[331283680,1720179050614,-151.0,0.000199,2]
[331283681,1720179050624,-151.0,0.000199,2]
[331283682,1720179050635,-151.0,0.000199,2]
[331283683,1720179050745,-151.0,0.000199,2]
[331283684,1720179050780,-151.0,0.000199,2]
[331283685,1720179050791,-151.0,0.000199,2]
[331283686,1720179050801,-261.924537,0.000199,2]
[331283687,1720179050811,-151.0,0.000199,2]
[331283688,1720179050821,-151.0,0.000199,2]